fUSD/lending_fUSD_20240814
["ID","MTS","AMOUNT","RATE_DAILY","PERIOD"]
[334829603,1723605100081,-3422.23,0.00015068,2]
[334829604,1723605100091,-500.0,0.00015068,2]
[334829605,1723605100100,-2279.94,0.00015068,2]
[334829606,1723605100111,-1289.81,0.00015068,2]
[334829607,1723605100120,-500.0,0.00015068,2]
[334829608,1723605100130,-665.5,0.00015068,2]
[334829609,1723605100139,-510.32,0.00015068,2]
[334829610,1723605100149,-1427.7,0.00015068,2]
[334829611,1723605100158,-500.0,0.00015068,2]
[334829612,1723605100168,-500.0,0.00015068,2]
[334829613,1723605100177,-2265.5,0.00015068,2]
[334829614,1723605100186,-1145.17,0.00015068,2]
[334829615,1723605100196,-3219.63,0.00015068,2]
[334829616,1723605100206,-500.0,0.00015068,2]
[334829617,1723605100215,-602.6,0.00015068,2]
[334829618,1723605100225,-500.0,0.00015068,2]
[334829619,1723605100234,-1191.07,0.00015068,2]
[334829620,1723605100243,-1014.7,0.00015068,2]
[334829621,1723605100252,-500.0,0.00015068,2]
[334829622,1723605100262,-500.0,0.00015068,2]
[334829623,1723605100272,-500.0,0.00015068,2]
[334829624,1723605100281,-2275.75,0.00015068,2]
[334829625,1723605100291,-500.0,0.00015068,2]
[334829626,1723605100300,-500.0,0.00015068,2]
[334829627,1723605100310,-630.85,0.00015068,2]
[334829628,1723605100319,-3552.25,0.00015068,2]
[334829629,1723605100329,-876.93,0.00015068,2]
[334829630,1723605100340,-4102.14,0.00015068,2]
[334829631,1723605100350,-1191.95,0.00015068,2]
[334829632,1723605100360,-500.0,0.00015068,2]
[334829633,1723605100370,-996.84,0.00015068,2]
[334829634,1723605100379,-3880.01,0.00015068,2]
[334829635,1723605100389,-500.0,0.00015068,2]
[334829636,1723605100399,-646.16,0.00015068,2]
[334829637,1723605100409,-1159.56,0.00015068,2]
[334829638,1723605100420,-2612.35,0.00015068,2]
[334829639,1723605100430,-769.7,0.00015068,2]
[334829640,1723605100439,-589.53,0.00015068,2]
[334829641,1723605100449,-1492.63,0.00015068,2]
[334829642,1723605100458,-1127.31,0.00015068,2]
[334829643,1723605100468,-582.87,0.00015068,2]
[334829644,1723605100477,-1344.56,0.00015068,2]
[334829645,1723605100486,-500.0,0.00015068,2]
[334829646,1723605100495,-500.0,0.00015068,2]
[334829647,1723605100505,-955.28,0.00015068,2]
[334829648,1723605100515,-500.0,0.00015068,2]
[334829649,1723605100524,-1804.03,0.00015068,2]
[334829650,1723605100534,-1584.08,0.00015068,2]
[334829651,1723605100544,-2222.02,0.00015068,2]
[334829652,1723605100554,-500.0,0.00015068,2]
[334829653,1723605100563,-626.87,0.00015068,2]
[334829654,1723605100572,-2565.94,0.00015068,2]
[334829655,1723605100581,-1633.43,0.00015068,2]
[334829656,1723605100590,-1002.48,0.00015068,2]
[334829657,1723605100599,-500.0,0.00015068,2]
[334829658,1723605100609,-1239.94,0.00015068,2]
[334829659,1723605100618,-1158.93,0.00015068,2]
[334829660,1723605100627,-1602.88,0.00015068,2]
[334829661,1723605100636,-355.98667564,0.00015068,2]
[334829662,1723605100646,-985.46,0.00015068,2]
[334829663,1723605100655,-500.0,0.00015068,2]
[334829664,1723605100665,-500.0,0.00015068,2]
[334829665,1723605100675,-237.75409017,0.00015068,2]
[334829666,1723605100684,-500.0,0.00015068,2]
[334829667,1723605100693,-3593.7,0.00015068,2]
[334829668,1723605100703,-1370.77,0.00015068,2]
[334829669,1723605100712,-953.98,0.00015068,2]
[334829670,1723605100721,-737.54,0.00015068,2]
[334829671,1723605100731,-500.0,0.00015068,2]
[334829672,1723605100740,-1630.24,0.00015068,2]
[334829673,1723605100750,-1897.14,0.00015068,2]
[334829674,1723605100760,-880.42,0.00015068,2]
[334829675,1723605100769,-500.0,0.00015068,2]
[334829676,1723605100777,-557.05,0.00015068,2]
[334829677,1723605100787,-875.47,0.00015068,2]
[334829678,1723605100797,-500.0,0.00015068,2]
[334829679,1723605100807,-269.48410823,0.00015068,2]
[334829680,1723605100817,-500.0,0.00015068,2]
[334829681,1723605100826,-1181.63,0.00015068,2]
[334829682,1723605100835,-500.0,0.00015068,2]
[334829683,1723605100845,-1030.34,0.00015068,2]
[334829684,1723605100855,-2181.86,0.00015068,2]
[334829685,1723605100864,-2025.74,0.00015068,2]
[334829686,1723605100874,-500.0,0.00015068,2]
[334829687,1723605100884,-1413.32,0.00015068,2]
[334829688,1723605100893,-910.05,0.00015068,2]
[334829689,1723605100902,-503.14,0.00015068,2]
[334829690,1723605100911,-529.76,0.00015068,2]
[334829691,1723605100921,-510.64,0.00015068,2]
[334829692,1723605100930,-1733.06,0.00015068,2]
[334829693,1723605100940,-868.31,0.00015068,2]
[334829694,1723605100951,-2269.46,0.00015068,2]
[334829695,1723605100960,-522.67,0.00015068,2]
[334829696,1723605100969,-500.0,0.00015068,2]
[334829697,1723605100979,-881.51,0.00015068,2]
[334829698,1723605100989,-706.73,0.00015068,2]
[334829699,1723605100999,-1396.78,0.00015068,2]
[334829700,1723605101009,-772.89,0.00015068,2]
[334829701,1723605101018,-500.0,0.00015068,2]
[334829702,1723605101028,-309.85264807,0.00015068,2]
[334829703,1723605101037,-2133.37,0.00015068,2]
[334829704,1723605101047,-500.0,0.00015068,2]
[334829705,1723605101057,-500.0,0.00015068,2]
[334829706,1723605101066,-500.0,0.00015068,2]
[334829707,1723605101077,-203.31042008,0.00015068,2]
[334829708,1723605101086,-1205.91,0.00015068,2]
[334829709,1723605101096,-929.46,0.00015068,2]
[334829710,1723605101106,-500.0,0.00015068,2]
[334829711,1723605101116,-500.0,0.00015068,2]
[334829712,1723605101126,-613.02,0.00015068,2]
[334829713,1723605101136,-2071.92,0.00015068,2]
[334829714,1723605101146,-849.35,0.00015068,2]
[334829715,1723605101156,-500.0,0.00015068,2]
[334829716,1723605101166,-500.0,0.00015068,2]
[334829717,1723605101175,-519.43,0.00015068,2]
[334829718,1723605101185,-1149.19,0.00015068,2]
[334829719,1723605101194,-816.63,0.00015068,2]
[334829720,1723605101204,-1338.21,0.00015068,2]
[334829721,1723605101213,-748.99,0.00015068,2]
[334829722,1723605101222,-500.0,0.00015068,2]
[334829723,1723605101232,-500.0,0.00015068,2]
[334829724,1723605101241,-500.0,0.00015068,2]
[334829725,1723605101251,-699.54,0.00015068,2]
[334829726,1723605101260,-1022.75,0.00015068,2]
[334829727,1723605101270,-523.86,0.00015068,2]
[334829728,1723605101280,-612.84,0.00015068,2]
[334829729,1723605101289,-500.0,0.00015068,2]
[334829730,1723605101299,-1197.98,0.00015068,2]
[334829731,1723605101310,-919.6,0.00015068,2]
[334829732,1723605101320,-1287.56,0.00015068,2]
[334829733,1723605101329,-500.0,0.00015068,2]
[334829734,1723605101341,-503.29,0.00015068,2]
[334829735,1723605101352,-500.0,0.00015068,2]
[334829736,1723605101362,-1236.66,0.00015068,2]
[334829737,1723605101371,-1706.6,0.00015068,2]
[334829738,1723605101381,-500.0,0.00015068,2]
[334829739,1723605101390,-727.3,0.00015068,2]
[334829740,1723605101399,-500.0,0.00015068,2]
[334829741,1723605101408,-536.46,0.00015068,2]
[334829742,1723605101420,-500.0,0.00015068,2]
[334829743,1723605101430,-721.37,0.00015068,2]
[334829744,1723605101439,-2182.15,0.00015068,2]
[334829745,1723605101451,-1786.37,0.00015068,2]
[334829746,1723605101461,-2427.03,0.00015068,2]
[334829747,1723605101471,-680.94,0.00015068,2]
[334829748,1723605101480,-500.0,0.00015068,2]
[334829749,1723605101490,-771.59,0.00015068,2]
[334829750,1723605101499,-1367.74,0.00015068,2]
[334829751,1723605101509,-500.0,0.00015068,2]
[334829752,1723605101518,-1950.59,0.00015068,2]
[334829753,1723605101528,-1130.15,0.00015068,2]
[334829754,1723605101539,-750.13,0.00015068,2]
[334829755,1723605101549,-1812.05,0.00015068,2]
[334829756,1723605101559,-500.0,0.00015068,2]
[334829757,1723605101569,-576.07,0.00015068,2]
[334829758,1723605101578,-1411.86,0.00015068,2]
[334829759,1723605101588,-500.0,0.00015068,2]
[334829760,1723605101598,-672.92,0.00015068,2]
[334829761,1723605101608,-2545.33,0.00015068,2]
[334829762,1723605101619,-500.0,0.00015068,2]
[334829763,1723605101629,-500.0,0.00015068,2]
[334829764,1723605101639,-500.0,0.00015068,2]
[334829765,1723605101649,-500.0,0.00015068,2]
[334829766,1723605101659,-500.0,0.00015068,2]
[334829767,1723605101669,-541.3,0.00015068,2]
[334829768,1723605101678,-500.0,0.00015068,2]
[334829769,1723605101688,-872.09,0.00015068,2]
[334829770,1723605101697,-6288.73,0.00015068,2]
[334829771,1723605101706,-500.0,0.00015068,2]
[334829772,1723605101715,-500.0,0.00015068,2]
[334829773,1723605101724,-500.0,0.00015068,2]
[334829774,1723605101734,-500.0,0.00015068,2]
[334829775,1723605101743,-1035.1,0.00015068,2]
[334829776,1723605101752,-1340.06,0.00015068,2]
[334829777,1723605101762,-500.0,0.00015068,2]
[334829778,1723605101772,-539.01608244,0.00015068,2]
[334829779,1723605101781,-1609.25,0.00015068,2]
[334829780,1723605101790,-2362.09,0.00015068,2]
[334829781,1723605101799,-500.0,0.00015068,2]
[334829782,1723605101809,-1034.45,0.00015068,2]
[334829783,1723605101818,-902.63,0.00015068,2]
[334829784,1723605101827,-557.88,0.00015068,2]
[334829785,1723605101837,-943.38,0.00015068,2]
[334829786,1723605101846,-3295.82,0.00015068,2]
[334829787,1723605101855,-500.0,0.00015068,2]
[334829788,1723605101864,-995.76,0.00015068,2]
[334829789,1723605101873,-501.42665283,0.00015068,2]
[334829790,1723605101882,-500.0,0.00015068,2]
[334829791,1723605101892,-500.0,0.00015068,2]
[334829792,1723605101901,-500.0,0.00015068,2]
[334829793,1723605101909,-756.18,0.00015068,2]
[334829794,1723605101918,-500.0,0.00015068,2]
[334829795,1723605101927,-681.83,0.00015068,2]
[334829796,1723605101936,-1346.5,0.00015068,2]
[334829797,1723605101946,-1093.21,0.00015068,2]
[334829798,1723605101955,-1173.15,0.00015068,2]
[334829799,1723605101964,-1976.94,0.00015068,2]
[334829800,1723605101973,-675.4,0.00015068,2]
[334829801,1723605101982,-500.0,0.00015068,2]
[334829802,1723605101991,-500.0,0.00015068,2]
[334829803,1723605102000,-533.76,0.00015068,2]
[334829804,1723605102009,-817.86,0.00015068,2]
[334829805,1723605102018,-1591.01,0.00015068,2]
[334829806,1723605102027,-736.58,0.00015068,2]
[334829807,1723605102036,-500.0,0.00015068,2]
[334829808,1723605102045,-500.0,0.00015068,2]
[334829809,1723605102053,-1823.18,0.00015068,2]
[334829810,1723605102063,-1560.86,0.00015068,2]
[334829811,1723605102072,-500.0,0.00015068,2]
[334829812,1723605102081,-500.0,0.00015068,2]
[334829813,1723605102090,-500.0,0.00015068,2]
[334829814,1723605102099,-868.55,0.00015068,2]
[334829815,1723605102108,-703.88,0.00015068,2]
[334829816,1723605102118,-549.74,0.00015068,2]
[334829817,1723605102127,-873.62,0.00015068,2]
[334829818,1723605102135,-500.0,0.00015068,2]
[334829819,1723605102145,-1218.76,0.00015068,2]
[334829820,1723605102157,-948.65,0.00015068,2]
[334829821,1723605102167,-530.56,0.00015068,2]
[334829822,1723605102176,-500.0,0.00015068,2]
[334829823,1723605102184,-500.0,0.00015068,2]
[334829824,1723605102195,-1962.68,0.00015068,2]
[334829825,1723605102205,-500.0,0.00015068,2]
[334829826,1723605102214,-3761.99,0.00015068,2]
[334829827,1723605102225,-1100.79,0.00015068,2]
[334829828,1723605102236,-519.9,0.00015068,2]
[334829829,1723605102245,-1091.85,0.00015068,2]
[334829830,1723605102256,-500.0,0.00015068,2]
[334829831,1723605102267,-500.0,0.00015068,2]
[334829832,1723605102275,-1899.15,0.00015068,2]
[334829833,1723605102285,-591.0,0.00015068,2]
[334829834,1723605102295,-500.0,0.00015068,2]
[334829835,1723605102306,-2902.42,0.00015068,2]
[334829836,1723605102317,-681.58,0.00015068,2]
[334829837,1723605102326,-979.62,0.00015068,2]
[334829838,1723605102340,-756.88,0.00015068,2]
[334829839,1723605102353,-501.14096618,0.00015068,2]
[334829840,1723605102363,-522.04,0.00015068,2]
[334829841,1723605102372,-1101.29,0.00015068,2]
[334829842,1723605102381,-500.0,0.00015068,2]
[334829843,1723605102391,-1108.67,0.00015068,2]
[334829844,1723605102400,-500.0,0.00015068,2]
[334829845,1723605102410,-500.0,0.00015068,2]
[334829846,1723605102422,-1192.85,0.00015068,2]
[334829847,1723605102432,-500.0,0.00015068,2]
[334829848,1723605102441,-1671.63,0.00015068,2]
[334829849,1723605102450,-4757.69,0.00015068,2]
[334829850,1723605102459,-738.15,0.00015068,2]
[334829851,1723605102469,-817.28,0.00015068,2]
[334829852,1723605102480,-349.04967715,0.00015068,2]
[334829853,1723605102490,-500.0,0.00015068,2]
[334829854,1723605102500,-1634.26,0.00015068,2]
[334829855,1723605102511,-1376.93,0.00015068,2]
[334829856,1723605102521,-500.0,0.00015068,2]
[334829857,1723605102533,-1110.82,0.00015068,2]
[334829858,1723605102544,-500.0,0.00015068,2]
[334829859,1723605102555,-18059.26,0.00015068,2]
[334829860,1723605102565,-2339.81,0.00015068,2]
[334829861,1723605102574,-815.45,0.00015068,2]
[334829862,1723605102583,-1022.58,0.00015068,2]
[334829863,1723605102593,-779.0,0.00015068,2]
[334829864,1723605102602,-1739.76,0.00015068,2]
[334829865,1723605102618,-500.0,0.00015068,2]
[334829866,1723605102627,-500.0,0.00015068,2]
[334829867,1723605102637,-716.15,0.00015068,2]
[334829868,1723605102648,-500.0,0.00015068,2]
[334829869,1723605102657,-824.5,0.00015068,2]
[334829870,1723605102667,-500.0,0.00015068,2]
[334829871,1723605102676,-611.72,0.00015068,2]
[334829872,1723605102685,-500.0,0.00015068,2]
[334829873,1723605102694,-564.02,0.00015068,2]
[334829874,1723605102704,-573.09,0.00015068,2]
[334829875,1723605102712,-1688.94,0.00015068,2]
[334829876,1723605102722,-500.0,0.00015068,2]
[334829877,1723605102732,-754.52,0.00015068,2]
[334829878,1723605102741,-500.0,0.00015068,2]
[334829879,1723605102750,-500.0,0.00015068,2]
[334829880,1723605102761,-2125.28,0.00015068,2]
[334829881,1723605102770,-500.0,0.00015068,2]
[334829882,1723605102779,-862.91,0.00015068,2]
[334829883,1723605102788,-1627.71,0.00015068,2]
[334829884,1723605102797,-726.59,0.00015068,2]
[334829885,1723605102806,-5975.91,0.00015068,2]
[334829886,1723605102815,-500.0,0.00015068,2]
[334829887,1723605102824,-1414.92,0.00015068,2]
[334829888,1723605102833,-592.73,0.00015068,2]
[334829889,1723605102843,-902.13,0.00015068,2]
[334829890,1723605102852,-2088.05,0.00015068,2]
[334829891,1723605102861,-5374.81,0.00015068,2]
[334829892,1723605102870,-1387.45,0.00015068,2]
[334829893,1723605102880,-768.36,0.00015068,2]
[334829894,1723605102889,-3876.74,0.00015068,2]
[334829895,1723605102899,-500.0,0.00015068,2]
[334829896,1723605102908,-500.0,0.00015068,2]
[334829897,1723605102917,-1245.3,0.00015068,2]
[334829898,1723605102927,-618.4,0.00015068,2]
[334829899,1723605102936,-2815.43,0.00015068,2]
[334829900,1723605102946,-3826.76,0.00015068,2]
[334829901,1723605102955,-500.0,0.00015068,2]
[334829902,1723605102966,-807.19,0.00015068,2]
[334829903,1723605102975,-2271.26,0.00015068,2]
[334829904,1723605102985,-855.92,0.00015068,2]
[334829905,1723605102994,-7857.05,0.00015068,2]
[334829906,1723605103004,-1088.18,0.00015068,2]
[334829907,1723605103013,-500.0,0.00015068,2]
[334829908,1723605103022,-752.58,0.00015068,2]
[334829909,1723605103031,-500.0,0.00015068,2]
[334829910,1723605103041,-3025.79,0.00015068,2]
[334829911,1723605103050,-2164.19,0.00015068,2]
[334829912,1723605103060,-3869.55,0.00015068,2]
[334829913,1723605103069,-892.24,0.00015068,2]
[334829914,1723605103079,-500.0,0.00015068,2]
[334829915,1723605103088,-500.0,0.00015068,2]
[334829916,1723605103097,-662.61,0.00015068,2]
[334829917,1723605103108,-916.14,0.00015068,2]
[334829918,1723605103117,-795.16,0.00015068,2]
[334829919,1723605103126,-4010.53153451,0.00015068,2]
[334829920,1723605103692,-22598.53846549,0.00015068,2]
[334829921,1723605103702,-425.29912478,0.00015068,2]
[334829922,1723605103823,-500.0,0.00015068,2]
[334829923,1723605103842,-3398.55,0.00015068,2]
[334829924,1723605103851,-22218.98,0.00015068,2]
[334829925,1723605103863,-314.38419696,0.00015068,2]
[334829926,1723605103873,-2542.25,0.00015068,2]
[334829927,1723605103883,-1245.59,0.00015068,2]
[334829928,1723605103892,-1016.07,0.00015068,2]
[334829929,1723605103902,-500.0,0.00015068,2]
[334829930,1723605103912,-2255.75,0.00015068,2]
[334829931,1723605103921,-500.0,0.00015068,2]
[334829932,1723605103930,-500.0,0.00015068,2]
[334829933,1723605103939,-1410.58,0.00015068,2]
[334829934,1723605103948,-500.0,0.00015068,2]
[334829935,1723605103957,-941.19,0.00015068,2]
[334829936,1723605103967,-500.0,0.00015068,2]
[334829937,1723605103976,-8200.38,0.00015068,2]
[334829938,1723605103986,-500.0,0.00015068,2]
[334829939,1723605103995,-500.0,0.00015068,2]
[334829940,1723605104005,-5134.83,0.00015068,2]
[334829941,1723605104014,-500.0,0.00015068,2]
[334829942,1723605104024,-1475.56,0.00015068,2]
[334829943,1723605104033,-500.0,0.00015068,2]
[334829944,1723605104043,-1590.03,0.00015068,2]
[334829945,1723605104052,-500.0,0.00015068,2]
[334829946,1723605104061,-500.0,0.00015068,2]
[334829947,1723605104071,-2005.17,0.00015068,2]
[334829948,1723605104080,-500.0,0.00015068,2]
[334829949,1723605104089,-500.0,0.00015068,2]
[334829950,1723605104099,-500.0,0.00015068,2]
[334829951,1723605104110,-500.0,0.00015068,2]
[334829952,1723605104123,-598.02,0.00015068,2]
[334829953,1723605104132,-12984.39,0.00015068,2]
[334829954,1723605104142,-7951.86,0.00015068,2]
[334829955,1723605104151,-1032.44,0.00015068,2]
[334829956,1723605104161,-739.61,0.00015068,2]
[334829957,1723605104170,-544.66166454,0.00015068,2]
[334829958,1723605104180,-2078.47,0.00015068,2]
[334829959,1723605104190,-500.0,0.00015068,2]
[334829960,1723605104199,-3476.41,0.00015068,2]
[334829961,1723605104208,-39703.17,0.00015068,2]
[334829962,1723605104218,-18895.17,0.00015068,2]
[334829963,1723605104227,-2008.56,0.00015068,2]
[334829964,1723605104236,-500.0,0.00015068,2]
[334829965,1723605104247,-500.0,0.00015068,2]
[334829966,1723605104256,-960.08,0.00015068,2]
[334829967,1723605104265,-16246.9,0.00015068,2]
[334829968,1723605104274,-500.0,0.00015068,2]
[334829969,1723605104284,-23755.04,0.00015068,2]
[334829970,1723605104294,-500.0,0.00015068,2]
[334829971,1723605104303,-1931.43,0.00015068,2]
[334829972,1723605104313,-1617.8,0.00015068,2]
[334829973,1723605104322,-596.55,0.00015068,2]
[334829974,1723605104332,-1313.03,0.00015068,2]
[334829975,1723605104343,-500.0,0.00015068,2]
[334829976,1723605104354,-7013.22,0.00015068,2]
[334829977,1723605104366,-5544.75,0.00015068,2]
[334829978,1723605104375,-500.0,0.00015068,2]
[334829979,1723605104385,-500.0,0.00015068,2]
[334829980,1723605104395,-502.28,0.00015068,2]
[334829981,1723605104404,-13355.74,0.00015068,2]
[334829982,1723605104414,-351.67101035,0.00015068,2]
[334829983,1723605104424,-560.1,0.00015068,2]
[334829984,1723605104434,-500.0,0.00015068,2]
[334829985,1723605104444,-500.0,0.00015068,2]
[334829986,1723605104452,-500.0,0.00015068,2]
[334829987,1723605104462,-2441.9,0.00015068,2]
[334829988,1723605104472,-2489.4,0.00015068,2]
[334829989,1723605104481,-1240.21,0.00015068,2]
[334829990,1723605104491,-1135.86,0.00015068,2]
[334829991,1723605104501,-500.0,0.00015068,2]
[334829992,1723605104511,-500.0,0.00015068,2]
[334829993,1723605104520,-500.0,0.00015068,2]
[334829994,1723605104530,-500.0,0.00015068,2]
[334829995,1723605104540,-4723.94,0.00015068,2]
[334829996,1723605104549,-824.22,0.00015068,2]
[334829997,1723605104559,-4121.71,0.00015068,2]
[334829998,1723605104568,-500.0,0.00015068,2]
[334829999,1723605104578,-500.0,0.00015068,2]
[334830000,1723605104587,-500.0,0.00015068,2]
[334830001,1723605104597,-1725.18,0.00015068,2]
[334830002,1723605104608,-500.0,0.00015068,2]
[334830003,1723605104618,-500.0,0.00015068,2]
[334830004,1723605104627,-500.0,0.00015068,2]
[334830005,1723605104637,-606.67503252,0.00015068,2]
[334830006,1723605104646,-500.0,0.00015068,2]
[334830007,1723605104656,-678.73,0.00015068,2]
[334830008,1723605104665,-452.87409723,0.00015068,2]
[334830009,1723605104675,-1375.35,0.00015068,2]
[334830010,1723605104684,-500.0,0.00015068,2]
[334830011,1723605104694,-500.0,0.00015068,2]
[334830012,1723605104703,-7442.74,0.00015068,2]
[334830013,1723605104712,-990.54,0.00015068,2]
[334830014,1723605104723,-895.16,0.00015068,2]
[334830015,1723605104732,-14963.69,0.00015068,2]
[334830016,1723605104742,-1429.94,0.00015068,2]
[334830017,1723605104752,-962.78,0.00015068,2]
[334830018,1723605104762,-500.0,0.00015068,2]
[334830019,1723605104772,-5404.54,0.00015068,2]
[334830020,1723605104782,-500.0,0.00015068,2]
[334830021,1723605104791,-1416.37,0.00015068,2]
[334830022,1723605104801,-500.0,0.00015068,2]
[334830023,1723605104811,-3072.29,0.00015068,2]
[334830024,1723605104820,-500.0,0.00015068,2]
[334830025,1723605104830,-507.36196376,0.00015068,2]
[334830026,1723605104839,-996.29,0.00015068,2]
[334830027,1723605104849,-2553.52,0.00015068,2]
[334830028,1723605104859,-1865.83,0.00015068,2]
[334830029,1723605104868,-862.29,0.00015068,2]
[334830030,1723605104878,-1066.91,0.00015068,2]
[334830031,1723605104887,-10401.13,0.00015068,2]
[334830032,1723605104897,-708.61,0.00015068,2]
[334830033,1723605104906,-500.0,0.00015068,2]
[334830034,1723605104915,-4853.34,0.00015068,2]
[334830035,1723605104925,-500.0,0.00015068,2]
[334830036,1723605104934,-2646.9,0.00015068,2]
[334830037,1723605104943,-500.0,0.00015068,2]
[334830038,1723605104953,-500.0,0.00015068,2]
[334830039,1723605104963,-500.0,0.00015068,2]
[334830040,1723605104972,-596.98543982,0.00015068,2]
[334830041,1723605104982,-500.0,0.00015068,2]
[334830042,1723605104992,-8054.04,0.00015068,2]
[334830043,1723605105002,-4502.45,0.00015068,2]
[334830044,1723605105011,-1513.43,0.00015068,2]
[334830045,1723605105020,-3569.57,0.00015068,2]
[334830046,1723605105030,-1672.01,0.00015068,2]
[334830047,1723605105039,-1382.21,0.00015068,2]
[334830048,1723605105048,-500.0,0.00015068,2]
[334830049,1723605105058,-500.0,0.00015068,2]
[334830050,1723605105068,-500.0,0.00015068,2]
[334830051,1723605105078,-30978.45,0.00015068,2]
[334830052,1723605105087,-808.08,0.00015068,2]
[334830053,1723605105097,-1117.17,0.00015068,2]
[334830054,1723605105106,-500.0,0.00015068,2]
[334830055,1723605105115,-1667.3,0.00015068,2]
[334830056,1723605105125,-2412.04,0.00015068,2]
[334830057,1723605105135,-9957.53,0.00015068,2]
[334830058,1723605105144,-541.43,0.00015068,2]
[334830059,1723605105154,-1421.86,0.00015068,2]
[334830060,1723605105164,-1350.79,0.00015068,2]
[334830061,1723605105173,-3315.49,0.00015068,2]
[334830062,1723605105183,-500.0,0.00015068,2]
[334830063,1723605105192,-5365.68,0.00015068,2]
[334830064,1723605105202,-1559.83,0.00015068,2]
[334830065,1723605105211,-500.0,0.00015068,2]
[334830066,1723605105221,-500.0,0.00015068,2]
[334830067,1723605105231,-5871.12,0.00015068,2]
[334830068,1723605105241,-1637.79,0.00015068,2]
[334830069,1723605105252,-500.0,0.00015068,2]
[334830070,1723605105261,-1965.79,0.00015068,2]
[334830071,1723605105271,-500.0,0.00015068,2]
[334830072,1723605105280,-1378.04,0.00015068,2]
[334830073,1723605105290,-500.0,0.00015068,2]
[334830074,1723605105300,-1616.8,0.00015068,2]
[334830075,1723605105309,-3530.55,0.00015068,2]
[334830076,1723605105318,-1964.9,0.00015068,2]
[334830077,1723605105327,-500.0,0.00015068,2]
[334830078,1723605105337,-500.0,0.00015068,2]
[334830079,1723605105351,-523.48,0.00015068,2]
[334830080,1723605105361,-500.0,0.00015068,2]
[334830081,1723605105370,-995.8,0.00015068,2]
[334830082,1723605105380,-1158.06,0.00015068,2]
[334830083,1723605105390,-500.0,0.00015068,2]
[334830084,1723605105401,-500.0,0.00015068,2]
[334830085,1723605105415,-1771.71,0.00015068,2]
[334830086,1723605105428,-2095.59,0.00015068,2]
[334830087,1723605105439,-1058.49,0.00015068,2]
[334830088,1723605105449,-500.0,0.00015068,2]
[334830089,1723605105459,-500.0,0.00015068,2]
[334830090,1723605105469,-500.0,0.00015068,2]
[334830091,1723605105479,-5450.64,0.00015068,2]
[334830092,1723605105488,-980.96,0.00015068,2]
[334830093,1723605105497,-1436.17,0.00015068,2]
[334830094,1723605105508,-2445.12,0.00015068,2]
[334830095,1723605105518,-503.7043922,0.00015068,2]
[334830096,1723605105528,-4063.03,0.00015068,2]
[334830097,1723605105537,-802.79,0.00015068,2]
[334830098,1723605105546,-500.0,0.00015068,2]
[334830099,1723605105557,-500.0,0.00015068,2]
[334830100,1723605105567,-1957.25,0.00015068,2]
[334830101,1723605105576,-821.33,0.00015068,2]
[334830102,1723605105586,-500.0,0.00015068,2]